bitfinex-derivatives/quotes_ETHF0:USTF0_20241005
["timestamp","ask_amount","ask_price","bid_price","bid_amount"]
[1728098465673,0.4122,2399.9,2399.7,0.42]
[1728098465882,0.4122,2399.9,2399.7,1.392]
[1728098466373,4.2578,2399.8,2399.5,0.4048]
[1728098466576,0.2917,2399.6,2399.3,0.4009]
[1728098466779,1.875,2399.5,2399.3,0.7943]
[1728098467082,1.875,2399.5,2399.0,4.29822799]
[1728098467083,1.34173,2399.4,2399.1,0.3934]
[1728098467269,0.29173,2399.3,2399.1,1.3654]
[1728098467968,0.29173,2399.3,2399.1,0.3934]
[1728098468167,1.75173,2399.4,2399.1,0.3934]
[1728098468372,1.75173,2399.4,2399.0,1.66466]
[1728098469381,1.46,2399.4,2399.0,1.3729]
[1728098469679,0.41,2399.4,2399.0,1.3729]
[1728098469877,0.41,2399.4,2399.1,0.29174]
[1728098470978,0.41,2399.4,2399.0,1.3739]
[1728098471180,4.0328,2399.5,2399.2,0.29174]
[1728098471577,4.32451,2399.5,2399.1,0.29175]
[1728098471881,4.32451,2399.5,2399.2,0.4126]
[1728098472283,4.32451,2399.5,2399.2,0.70434]
[1728098472776,3.2078,2399.5,2399.2,2.6926]
[1728098472984,3.2078,2399.5,2399.3,1.11042]
[1728098473179,3.2078,2399.5,2399.4,0.29172]
[1728098473378,3.2078,2399.5,2399.3,0.8187]
[1728098473379,3.2078,2399.5,2399.3,1.11042]
[1728098474978,3.2078,2399.5,2399.3,0.8187]
[1728098475486,3.2078,2399.5,2399.3,1.11043]
[1728098475781,3.2078,2399.5,2399.3,0.8187]
[1728098476175,3.2078,2399.5,2399.3,1.11043]
[1728098480277,0.4064,2399.6,2399.3,1.11043]
[1728098480479,3.2078,2399.5,2399.3,1.11043]
[1728098480683,3.2078,2399.5,2399.3,0.8187]
[1728098481081,3.2078,2399.5,2399.3,1.11043]
[1728098484088,3.2078,2399.5,2399.2,2.98434]
[1728098484285,0.3977,2399.4,2399.2,0.70434]
[1728098484483,0.3977,2399.4,2399.2,0.973]
[1728098484783,0.69583,2399.3,2399.2,0.973]
[1728098485083,0.4041,2399.3,2399.2,0.973]
[1728098485586,0.4041,2399.3,2399.1,0.29176]
[1728098485786,0.4041,2399.3,2399.1,1.26476]
[1728098488700,0.4041,2399.3,2399.1,0.973]
[1728098489088,0.4041,2399.3,2398.8,3.7700076]
[1728098489287,0.29175,2399.2,2398.8,3.80689]
[1728098489487,0.4041,2399.3,2398.9,0.973]
[1728098490097,0.69584,2399.3,2398.9,1.26478]
[1728098490395,0.4041,2399.3,2398.8,0.8204]
[1728098490586,0.29176,2399.1,2398.8,0.3995]
[1728098490782,1.13007,2399.0,2398.6,0.70861]
[1728098490992,3.49959,2398.9,2398.6,0.71672]
[1728098491209,3.49959,2398.9,2398.6,1.3969]
[1728098491586,4.54959,2398.9,2398.6,1.3969]
[1728098491791,4.2578,2398.9,2398.6,1.68871]
[1728098492201,4.2578,2398.9,2398.6,0.71672]
[1728098492500,4.2578,2398.9,2398.6,1.68872]
[1728098494004,4.2578,2398.9,2398.7,0.2918]
[1728098495104,4.2578,2398.9,2398.6,1.3969]
[1728098495305,4.2578,2398.9,2398.6,1.68871]
[1728098499309,1.61491634,2399.3,2398.8,1.05]
[1728098499607,0.3988,2399.2,2398.9,1.8642]
[1728098499809,0.3988,2399.2,2398.9,2.07798]
[1728098500110,0.69055,2399.2,2398.9,0.972]
[1728098500298,0.413,2399.1,2398.9,0.972]
[1728098500500,0.413,2399.1,2398.9,0.29178]
[1728098501395,0.3988,2399.2,2398.9,0.29178]
[1728098501705,0.3988,2399.2,2399.1,0.29176]
[1728098504311,0.3988,2399.2,2399.0,1.46476]
[1728098504995,0.3988,2399.2,2399.0,0.68076]
[1728098509305,0.3988,2399.2,2399.1,0.29176]
[1728098511308,0.3988,2399.2,2399.0,0.29176]
[1728098511812,0.3988,2399.2,2398.8,0.68459]
[1728098511813,4.54956,2399.1,2398.8,0.68459]
[1728098512009,0.8084,2399.0,2398.8,0.68459]
[1728098512507,0.4276,2398.9,2398.8,0.68459]
[1728098512707,0.4276,2398.9,2398.8,0.3928]
[1728098514714,5.6464,2398.9,2398.5,1.09042799]
[1728098514914,3.2078,2398.8,2398.5,1.38225799]
[1728098515218,3.2078,2398.8,2398.5,0.29183]
[1728098515608,1.05,2398.7,2398.4,1.09042799]
[1728098515813,3.2078,2398.8,2398.2,2.06242799]
[1728098515814,1.05,2398.5,2398.2,2.06242799]
[1728098516008,1.05,2398.5,2398.1,2.18279799]
[1728098516009,4.54963,2398.5,2398.1,2.18279799]
[1728098516511,1.05,2398.3,2398.1,0.3956]
[1728098516812,0.3912,2398.2,2398.1,0.3956]
[1728098517114,9.2356,2398.2,2397.7,1.09042799]
[1728098517312,4.2578,2397.9,2397.7,0.29192]
[1728098517512,0.417,2397.8,2397.7,0.29192]
[1728098519614,4.5874,2397.8,2397.3,0.29197]
[1728098519813,3.2078,2397.5,2397.4,0.29195]
[1728098520815,0.4297,2397.7,2397.4,1.05]
[1728098521011,3.2078,2397.9,2397.7,0.29193]
[1728098521619,3.2078,2397.9,2397.6,0.71603]
[1728098521811,3.2078,2397.9,2397.7,0.4127]
[1728098522014,3.2078,2397.9,2397.7,0.70463]
[1728098522317,3.2078,2397.9,2397.7,0.8023]
[1728098522823,3.2078,2397.9,2397.7,1.09422]
[1728098523024,3.2078,2397.9,2397.7,0.8023]
[1728098523318,4.2578,2397.9,2397.7,0.8023]
[1728098524218,1.05,2397.8,2397.4,2.31296]
[1728098524525,1.05,2397.8,2397.5,0.3896]
[1728098524724,1.05,2397.8,2397.5,0.68155]
[1728098525518,3.2078,2397.9,2397.5,0.3896]
[1728098525720,3.2078,2397.9,2397.5,1.4396]
[1728098525921,3.2078,2397.9,2397.7,1.34192]
[1728098526114,3.2078,2397.9,2397.8,0.3903]
[1728098528118,3.2078,2397.9,2397.6,1.67434]
[1728098528119,3.2078,2397.9,2397.7,0.29193]
[1728098528324,3.2078,2397.9,2397.7,0.68223]
[1728098528717,3.2078,2397.8,2397.7,0.68223]
[1728098528922,3.2078,2397.8,2397.7,1.73223]
[1728098532523,3.2078,2397.8,2397.7,5.90263]
[1728098532827,3.3048,2398.3,2397.7,11.6107]
[1728098533128,3.3048,2398.3,2398.1,0.29188]
[1728098533331,3.2078,2398.3,2398.1,0.29188]
[1728098533523,3.2078,2398.3,2398.2,0.4207]
[1728098533826,3.2078,2398.3,2398.2,0.8313]
[1728098535124,3.2078,2398.3,2397.5,3.93767]
[1728098535125,3.2078,2398.3,2397.5,3.2078]
[1728098535324,1.05,2398.2,2397.8,1.34191]
[1728098535825,3.2078,2398.0,2397.8,1.34191]
[1728098536220,3.2078,2398.0,2397.8,5.51231]
[1728098536630,3.2078,2398.0,2397.8,5.2204]
[1728098536928,3.2078,2398.0,2397.9,5.5123]
[1728098537132,3.2078,2398.0,2397.9,1.3419]
[1728098537425,3.2078,2398.0,2397.9,5.5123]
[1728098538126,4.031,2398.4,2398.1,0.29187]
[1728098538331,4.031,2398.4,2398.2,0.8236]
[1728098538529,4.031,2398.4,2398.2,1.2165]
[1728098540130,3.6283,2398.4,2398.2,1.2165]
[1728098540434,3.6283,2398.4,2398.2,1.50835]
[1728098540435,3.2078,2398.4,2398.2,1.50835]
[1728098542234,3.2078,2398.4,2398.3,0.29185]
[1728098542641,3.2078,2398.4,2398.2,1.2165]
[1728098542935,0.8303,2398.6,2398.2,1.50836]
[1728098543232,0.8303,2398.6,2398.2,1.2165]
[1728098543432,0.8303,2398.6,2398.1,1.26387]
[1728098543433,0.29183,2398.5,2398.1,1.26387]
[1728098543628,0.4176,2398.4,2398.1,1.26387]
[1728098544131,1.8803,2398.6,2398.2,0.29186]
[1728098544331,2.2979,2398.6,2398.2,0.29186]
[1728098544534,2.2979,2398.6,2398.3,0.4143]
[1728098546738,2.2979,2398.6,2398.3,0.70615]
[1728098546931,2.58972,2398.6,2398.3,0.4143]
[1728098547636,2.2979,2398.6,2398.3,0.70615]
[1728098547828,2.58972,2398.6,2398.3,0.70615]
[1728098548035,2.2979,2398.6,2398.3,0.70615]
[1728098549030,2.2979,2398.6,2398.4,0.29184]
[1728098549232,0.8303,2398.6,2398.5,0.29183]
[1728098549440,0.4225,2398.6,2398.5,0.29183]
[1728098550130,0.097,2398.9,2398.5,13.3766]
[1728098550325,3.3198,2399.1,2398.5,13.3766]
[1728098550326,0.4223,2399.0,2398.9,0.29178]
[1728098550533,3.6105,2399.1,2398.9,1.05]
[1728098550738,3.6105,2399.1,2399.0,0.29177]
[1728098550937,3.6105,2399.1,2398.9,2.13847]
[1728098551142,3.6105,2399.1,2398.9,0.68587]
[1728098552533,0.4027,2399.1,2399.0,0.29177]
[1728098553546,0.4223,2399.2,2399.1,0.29176]
[1728098553729,0.4223,2399.2,2399.1,1.26276]
[1728098553930,0.097,2399.5,2399.2,0.29174]
[1728098554233,1.7311,2399.6,2399.2,0.29174]
[1728098554234,0.3935,2399.4,2399.2,0.29174]
[1728098554436,1.4435,2399.4,2399.1,0.971]
[1728098554736,1.4435,2399.4,2399.1,1.26276]
[1728098554935,1.34175,2399.2,2399.0,0.971]
[1728098555134,0.3894,2399.1,2399.0,0.971]
[1728098555328,0.3894,2399.1,2398.8,3.2078]
[1728098555545,0.3894,2399.1,2398.9,0.971]
[1728098555546,0.4002,2399.0,2398.9,0.971]
[1728098556837,0.4002,2399.0,2398.9,1.26278]
[1728098557335,0.4002,2399.0,2398.9,0.971]
[1728098562540,5.4878,2399.4,2398.9,0.971]
[1728098562843,0.4066,2399.2,2398.9,1.7879]
[1728098563043,0.4066,2399.2,2399.1,0.29176]
[1728098564843,3.2078,2399.4,2399.0,2.28]
[1728098565047,3.2078,2399.4,2399.2,0.29174]
[1728098565638,3.2078,2399.4,2399.3,0.29173]
[1728098565852,0.8198,2399.5,2399.4,0.29172]
[1728098566050,0.8198,2399.5,2399.4,1.26172]
[1728098566755,0.8198,2399.5,2399.4,0.97]
[1728098567147,0.8198,2399.5,2399.4,1.26172]
[1728098568251,0.8198,2399.5,2399.4,0.97]
[1728098572455,0.8198,2399.5,2399.4,1.26172]
[1728098573650,0.8198,2399.5,2399.4,0.97]
[1728098576256,0.8198,2399.5,2399.3,0.29173]
[1728098576557,0.8198,2399.5,2399.4,0.97]
[1728098577257,0.8198,2399.5,2399.4,1.26172]
[1728098577850,0.8198,2399.5,2399.4,0.97]
[1728098580263,0.8198,2399.5,2399.3,0.29173]
[1728098580557,0.29174,2399.3,2399.1,0.97]
[1728098580951,0.4152,2399.2,2399.1,0.97]
[1728098581453,0.4152,2399.2,2398.9,5.48]
[1728098581765,0.4024,2399.1,2399.0,2.31177]
[1728098582959,0.4024,2399.1,2399.0,2.02]
[1728098584662,0.4024,2399.1,2399.0,2.31177]
[1728098584964,0.29177,2399.0,2398.6,5.47989705]
[1728098585171,0.2918,2398.8,2398.5,0.8185]
[1728098585359,0.4088,2398.7,2398.6,0.97]
[1728098585559,0.4088,2398.7,2398.6,1.26182]
[1728098586669,0.4088,2398.7,2398.6,0.97]
[1728098587564,0.4088,2398.7,2398.3,1.68366773]
[1728098587762,0.4178,2398.6,2398.4,2.02]
[1728098588165,0.4178,2398.6,2398.4,2.31184]
[1728098589168,0.4178,2398.6,2398.4,1.34184]
[1728098589464,0.4178,2398.6,2398.5,0.97]
[1728098590361,0.70962,2398.6,2398.3,0.3878]
[1728098590561,1.4678,2398.6,2398.1,2.8266]
[1728098590762,3.6317,2398.5,2398.2,1.05]
[1728098590962,3.6317,2398.5,2398.3,1.34185]
[1728098591771,3.6317,2398.5,2398.3,1.05]
[1728098592165,3.2078,2398.8,2398.7,0.29181]
[1728098592363,3.2078,2398.8,2398.7,1.34181]
[1728098592563,0.4238,2399.0,2398.7,1.34181]
[1728098592564,0.4238,2399.0,2398.9,0.29178]
[1728098592768,0.4238,2399.0,2398.9,1.34178]
[1728098593267,0.4238,2399.0,2398.9,1.05]
[1728098593673,0.4238,2399.0,2398.8,0.72059]
[1728098594668,0.4238,2399.0,2398.8,0.4288]
[1728098594872,0.29179,2398.9,2398.6,2.28]
[1728098595078,0.69929,2398.9,2398.6,2.28]
[1728098595972,0.69929,2398.9,2398.5,1.26183]
[1728098595973,0.4075,2398.9,2398.5,1.26183]
[1728098596170,0.4075,2398.9,2398.5,0.29183]
[1728098596371,0.4075,2398.9,2398.6,0.97]
[1728098596876,0.4075,2398.9,2398.6,0.29181]
[1728098597075,0.4075,2398.9,2398.6,1.26181]
[1728098597971,0.4075,2398.9,2398.6,0.97]
[1728098598778,3.6153,2398.9,2398.6,0.97]
[1728098599278,3.2078,2398.9,2398.7,0.29179]
[1728098599586,3.2078,2398.9,2398.7,0.70539]
[1728098599879,3.2078,2398.9,2398.8,0.3914]
[1728098600079,3.2078,2398.9,2398.8,0.68319]
[1728098600282,3.2078,2398.9,2398.8,0.3914]
[1728098600674,0.4238,2399.0,2398.8,0.68319]
[1728098600877,0.4238,2399.0,2398.8,0.7857]
[1728098601275,0.3902,2399.1,2398.9,0.29177]
[1728098601676,0.3902,2399.1,2399.0,0.4172]
[1728098601876,0.3902,2399.1,2398.9,0.29178]
[1728098602078,0.3902,2399.1,2398.9,0.70898]
[1728098606688,0.3902,2399.1,2398.9,0.4172]
[1728098606894,0.3902,2399.1,2398.9,0.70898]
[1728098609390,0.3902,2399.1,2398.9,0.4172]
[1728098609591,0.3902,2399.1,2398.9,0.70898]
[1728098611284,0.3902,2399.1,2398.9,0.4172]
[1728098611685,0.3902,2399.1,2398.9,0.70898]
[1728098620592,0.3902,2399.1,2398.8,1.3604]
[1728098620593,0.68196,2399.1,2398.8,1.3604]
[1728098620892,0.3902,2399.1,2398.8,1.65219]
[1728098621398,0.3902,2399.1,2398.8,1.3604]
[1728098622291,0.68196,2399.1,2398.8,1.3604]
[1728098623089,0.3902,2399.1,2398.8,1.65219]
[1728098623289,0.3902,2399.1,2398.8,2.70219]
[1728098625600,2.00511634,2399.1,2398.8,2.70219]
[1728098626300,0.3902,2399.1,2398.8,2.70219]
[1728098626501,2.00511634,2399.1,2398.8,2.70219]
[1728098627097,5.21291634,2399.1,2398.8,2.70219]
[1728098627488,5.21291634,2399.1,2398.8,3.79261799]
[1728098627697,5.21291634,2399.1,2398.8,2.70219]
[1728098628298,5.21291634,2399.1,2398.8,3.79261799]
[1728098628696,2.00511634,2399.1,2398.8,3.79261799]
[1728098629396,2.00511634,2399.1,2398.8,0.3914]
[1728098629605,5.11450634,2398.9,2398.6,2.05942799]
[1728098629803,0.3931,2398.8,2398.6,2.05942799]
[1728098630199,0.4078,2398.7,2398.6,2.35124799]
[1728098630794,0.4078,2398.7,2398.6,1.38224799]
[1728098630994,0.4078,2398.7,2398.6,2.35124799]
[1728098631201,0.3931,2398.8,2398.6,3.40124799]
[1728098631600,0.3931,2398.8,2398.7,0.4019]
[1728098632504,0.3931,2398.8,2398.7,0.8233]
[1728098632806,0.3931,2398.8,2398.7,1.91372799]
[1728098633300,0.3931,2398.8,2398.7,0.8233]
[1728098637502,2.00801634,2398.8,2398.7,0.8233]
[1728098638105,2.00801634,2398.8,2398.7,1.91372799]
[1728098638409,0.3931,2398.8,2398.7,1.91372799]
[1728098638603,2.00801634,2398.8,2398.7,1.91372799]
[1728098638805,0.3931,2398.8,2398.7,1.91372799]
[1728098640300,2.00801634,2398.8,2398.7,1.91372799]
[1728098640602,0.3931,2398.8,2398.7,1.91372799]
[1728098644111,0.834,2399.7,2399.4,0.29171]
[1728098644305,6.87696904,2400.5,2400.0,0.29164]
[1728098644306,0.834,2400.5,2400.0,0.29164]
[1728098644506,0.419,2400.8,2400.4,1.05]
[1728098644909,1.61491634,2400.5,2400.4,1.05]
[1728098645107,1.61491634,2400.5,2400.4,2.14125999]
[1728098645308,1.61491634,2400.5,2400.3,2.018]
[1728098645609,1.61491634,2400.4,2400.3,2.018]
[1728098646009,1.61491634,2400.4,2400.3,3.45660764]
[1728098646213,1.61491634,2400.4,2400.3,2.57131063]
[1728098646707,1.61491634,2400.4,2400.3,2.86238191]
[1728098646911,1.61491634,2400.4,2400.3,3.74680609]
[1728098647310,1.61491634,2400.4,2400.3,2.86238191]
[1728098647513,1.61491634,2400.4,2400.3,3.80077191]
[1728098649818,1.61491634,2400.4,2400.3,4.09125315]
[1728098650719,0.419,2400.8,2400.6,0.29157]
[1728098650919,1.61491634,2400.7,2400.6,2.28]
[1728098652010,1.61491634,2400.7,2400.2,3.2078]
[1728098652011,1.61491634,2400.7,2400.5,0.968]
[1728098652212,0.419,2400.8,2400.5,0.968]
[1728098652213,1.61491634,2400.6,2400.5,0.968]
[1728098652914,1.61491634,2400.6,2400.2,5.4878]
[1728098652915,1.61491634,2400.6,2400.2,5.77942]
[1728098653114,1.61491634,2400.4,2400.3,1.25961]
[1728098653711,1.61491634,2400.4,2400.3,0.968]
[1728098654809,1.61491634,2400.4,2400.3,4.1758]
[1728098655013,1.61491634,2400.4,2400.3,3.2078]
[1728098655220,1.61491634,2400.4,2399.7,0.968]
[1728098655221,10.1664,2400.4,2399.7,0.968]
[1728098655421,3.2078,2400.1,2399.7,0.968]
[1728098655620,1.61491634,2399.8,2399.4,2.57172]
[1728098655820,1.61491634,2399.6,2399.5,0.967]
[1728098656213,1.61491634,2399.6,2399.5,1.25871]
[1728098658625,1.61491634,2399.6,2399.5,0.967]
[1728098658821,1.61491634,2399.6,2399.5,1.25871]
[1728098660920,1.61491634,2399.6,2399.5,0.967]
[1728098661120,1.61491634,2399.6,2399.5,1.25871]
[1728098663225,1.61491634,2399.6,2399.5,0.967]
[1728098663424,1.61491634,2399.6,2399.5,3.247]
[1728098666219,1.61491634,2399.6,2399.2,5.4878]
[1728098666519,0.67958,2399.8,2399.3,0.968]
[1728098666520,0.29168,2399.7,2399.3,0.968]
[1728098667021,1.61491634,2399.4,2399.3,0.968]
[1728098667528,1.61491634,2399.4,2399.3,1.25973]
[1728098674432,0.3879,2399.8,2399.6,0.29169]
[1728098674729,0.3879,2399.8,2399.6,2.57169]
[1728098674931,1.61491634,2399.7,2399.6,2.57169]
[1728098678035,1.61491634,2399.7,2399.6,2.5717]
[1728098680833,1.61491634,2399.7,2399.6,3.4995]
[1728098681030,1.61491634,2399.7,2399.6,5.7795]
[1728098681425,0.4118,2400.0,2399.6,15.655]
[1728098681623,0.4118,2400.0,2399.9,1.34166]
[1728098681936,2.02671634,2400.0,2399.9,2.31366]
[1728098683526,2.02671634,2400.0,2399.9,3.54366]
[1728098685253,2.02671634,2400.0,2399.9,3.79674426]
[1728098685453,2.02671634,2400.0,2399.9,4.34878803]
[1728098686550,2.02671634,2400.0,2399.9,4.34881615]
[1728098686954,2.02671634,2400.0,2399.9,4.09573189]
[1728098687152,2.02671634,2400.0,2399.9,3.252]
[1728098687651,2.02671634,2400.0,2399.9,3.54366]
[1728098687949,2.02671634,2400.0,2399.9,4.09596043]
[1728098688659,2.02671634,2400.0,2399.9,3.80430043]
[1728098689250,2.02671634,2400.0,2399.9,4.98052835]
[1728098689953,2.31836634,2400.0,2399.9,1.43686835]
[1728098690154,2.31836634,2400.0,2399.8,2.28]
[1728098690155,2.43231634,2400.0,2399.8,3.252]
[1728098690454,2.43231634,2400.0,2399.6,1.38293999]
[1728098690455,1.61491634,2399.9,2399.6,2.28]
[1728098690756,0.8174,2400.0,2399.7,0.55290949]
[1728098690757,1.10905,2400.0,2399.7,0.55290949]
[1728098690951,0.29166,2399.9,2399.8,0.55290949]
[1728098691153,0.8174,2400.0,2399.8,0.55290949]
[1728098691154,1.10905,2400.0,2399.8,0.55290949]
[1728098691354,1.10905,2400.0,2399.6,2.28]
[1728098691355,1.61491634,2399.9,2399.6,2.28]
[1728098691653,1.10905,2400.0,2399.8,2.28]
[1728098691654,0.8174,2400.0,2399.8,2.28]
[1728098691955,0.8174,2400.0,2399.9,0.55292619]
[1728098692358,2.43231634,2400.0,2399.9,0.55292619]
[1728098698061,2.43231634,2400.0,2399.9,1.43855742]
[1728098699260,2.43231634,2400.0,2399.8,2.57167]
[1728098699556,1.61491634,2399.9,2399.8,3.66292999]
[1728098699754,1.61491634,2399.9,2399.8,5.10296882]
[1728098701555,1.61491634,2399.9,2399.8,3.66292999]
[1728098701756,1.61491634,2399.9,2399.8,5.1036781]
[1728098702350,1.61491634,2399.9,2399.8,6.49906084]
[1728098702549,1.61491634,2399.9,2399.8,5.40780085]
[1728098702755,1.61491634,2399.9,2399.8,7.04469084]
[1728098702956,1.61491634,2399.9,2399.8,6.49936943]
[1728098703162,1.61491634,2399.9,2399.8,7.04469084]
[1728098703355,1.61491634,2399.9,2399.8,6.49935014]
[1728098703554,1.61491634,2399.9,2399.8,5.40780085]
[1728098703759,1.61491634,2399.9,2399.8,7.04469084]
[1728098705568,1.61491634,2399.9,2399.8,5.81469084]
[1728098706159,1.61491634,2399.9,2399.8,5.81459001]
[1728098706761,1.61491634,2399.9,2399.8,4.97752687]
[1728098706958,1.61491634,2399.9,2399.8,3.58224496]
[1728098707161,2.00401634,2399.9,2399.8,3.58224496]
[1728098707371,2.00401634,2399.9,2399.8,4.55024496]
[1728098707868,2.00401634,2399.9,2399.8,3.45874811]
[1728098708072,2.00401634,2399.9,2399.8,4.55024496]
[1728098708269,2.00401634,2399.9,2399.8,3.45874811]
[1728098708464,2.00401634,2399.9,2399.8,2.018]
[1728098708663,2.00401634,2399.9,2399.8,3.45867577]
[1728098709761,2.00401634,2399.9,2399.8,2.49067577]
[1728098711258,2.00401634,2399.9,2399.8,1.05]
[1728098711464,2.00401634,2399.9,2399.8,2.7823909]
[1728098711871,2.00401634,2399.9,2399.8,2.4907209]
[1728098712266,2.00401634,2399.9,2399.8,2.7823909]
[1728098712572,2.00401634,2399.9,2399.8,3.87388775]
[1728098714271,2.00401634,2399.9,2399.8,3.58221775]
[1728098714471,2.00401634,2399.9,2399.8,2.14149685]
[1728098714666,2.00401634,2399.9,2399.8,3.58246059]
[1728098714864,2.00401634,2399.9,2399.8,3.87413059]
[1728098717575,2.00401634,2399.9,2399.8,3.58246059]
[1728098717871,2.00401634,2399.9,2399.8,3.58296818]
[1728098719473,2.00401634,2399.9,2399.8,4.9794632]
[1728098719868,8.29567634,2399.9,2399.8,1.44147133]
[1728098720071,10.43690884,2399.9,2399.8,1.44183186]
[1728098720375,10.43690884,2399.9,2399.8,0.55441205]
[1728098721171,4.43690884,2399.9,2399.8,0.55441205]
[1728098721675,10.43690884,2399.9,2399.8,0.55441205]
[1728098722269,4.43690884,2399.9,2399.8,0.55441205]
[1728098722579,10.43690884,2399.9,2399.8,0.55441205]
[1728098726979,0.29168,2399.7,2399.5,0.2917]
[1728098727187,4.0584,2399.6,2399.5,0.2917]
[1728098727379,5.67331634,2399.6,2399.5,0.2917]
[1728098727582,5.67331634,2399.6,2399.5,1.73271719]
[1728098727776,5.67331634,2399.6,2399.5,0.2917]
[1728098728086,5.67331634,2399.6,2399.5,1.73271802]
[1728098730579,5.67331634,2399.6,2399.5,1.73241618]
[1728098733884,5.67331634,2399.6,2399.5,0.2917]
[1728098734182,5.67331634,2399.6,2399.5,1.73235842]
[1728098735787,5.67331634,2399.6,2399.5,2.78235842]
[1728098736592,5.67331634,2399.6,2399.5,2.49065842]
[1728098737394,5.67331634,2399.6,2399.5,2.78236842]
[1728098740095,11.67331634,2399.6,2399.5,0.55409939]
[1728098740300,11.67331634,2399.6,2398.9,2.18251999]
[1728098740301,0.29174,2399.3,2398.9,2.43326685]
[1728098740495,1.61491634,2399.0,2398.9,2.14149685]
[1728098740696,1.61491634,2399.0,2398.9,1.93656443]
[1728098740886,1.61491634,2399.0,2398.9,1.05]
[1728098741084,1.61491634,2399.0,2398.9,1.92987763]
[1728098743894,1.61491634,2399.0,2398.9,1.92928056]
[1728098746898,1.61491634,2399.0,2398.7,1.09149685]
[1728098747101,1.61491634,2398.8,2398.7,1.09149685]
[1728098747406,1.61491634,2398.8,2398.7,1.34181]
[1728098747703,1.61491634,2398.8,2398.7,3.31214868]
[1728098748502,1.61491634,2398.8,2398.7,2.22065183]
[1728098750298,1.61491634,2398.8,2398.7,1.34181]
[1728098750504,1.61491634,2398.8,2398.7,2.22046508]
[1728098751005,1.61491634,2398.8,2398.7,1.92865508]
[1728098752406,1.61491634,2398.8,2398.7,2.47780195]
[1728098752794,1.61491634,2398.8,2398.7,1.42780195]
[1728098752999,0.29182,2398.6,2398.4,2.14149685]
[1728098753305,0.29182,2398.6,2398.4,1.05]
[1728098753306,2.01131634,2398.5,2398.4,1.05]
[1728098754499,2.01131634,2398.5,2398.1,0.3908]
[1728098754500,0.29184,2398.4,2398.1,1.05]
[1728098754704,1.61491634,2398.2,2398.1,1.05]
[1728098755302,1.61491634,2398.2,2397.9,2.4473]
[1728098755608,1.61491634,2398.0,2397.9,2.4473]
[1728098755911,1.61491634,2398.0,2397.9,2.7392]
[1728098756713,1.61491634,2398.0,2397.9,1.6892]
[1728098756904,1.61491634,2398.0,2397.9,2.3099]
[1728098757205,1.61491634,2398.0,2397.9,1.3419]
[1728098757606,1.61491634,2398.0,2397.9,0.2919]
[1728098758207,1.61491634,2398.0,2397.8,2.57191]
[1728098758513,2.00471634,2397.9,2397.8,2.57191]
[1728098759112,2.00471634,2397.9,2397.7,2.28]
[1728098759307,2.00471634,2397.9,2397.6,0.968]
[1728098759308,2.01691634,2397.8,2397.6,0.968]
[1728098759513,1.61491634,2397.7,2397.6,0.968]
[1728098759713,2.03891634,2397.7,2397.6,0.968]
[1728098760311,2.03891634,2397.7,2397.3,1.08617]
[1728098760614,2.03891634,2397.7,2397.2,3.2078]
[1728098760615,1.61491634,2397.4,2397.2,2.28]
[1728098760811,1.61491634,2397.3,2397.2,2.28]
[1728098761014,1.61491634,2397.3,2397.2,2.57199]
[1728098761517,1.61491634,2397.3,2397.2,2.28]
[1728098761815,1.61491634,2397.3,2397.2,2.57199]
[1728098763507,0.98902746,2397.3,2397.2,2.57199]
[1728098766720,0.98902746,2397.3,2397.2,2.28]
[1728098768513,0.98902746,2397.3,2397.2,2.57199]
[1728098769116,0.98902746,2397.3,2397.2,5.77979]
[1728098769320,0.98902746,2397.3,2397.2,6.74779]
[1728098770117,0.8281,2397.7,2397.6,0.29194]
[1728098770118,0.4041,2397.7,2397.6,0.29194]
[1728098770415,0.097,2398.0,2397.8,0.29191]
[1728098770620,4.0331,2398.1,2397.8,0.29191]
[1728098770814,0.98902746,2397.9,2397.8,0.29191]
[1728098771016,0.98902746,2397.9,2397.8,2.57191]
[1728098771810,0.98902746,2397.9,2397.8,2.28]
[1728098772224,0.98902746,2397.9,2397.8,2.57191]
[1728098772918,4.0331,2398.1,2397.8,6.4504]
[1728098773124,0.98902746,2398.0,2397.9,0.2919]
[1728098775121,0.98902746,2398.0,2397.8,2.5719]
[1728098775321,0.98902746,2398.0,2397.9,0.2919]
[1728098777821,0.98902746,2398.0,2397.8,2.57191]
[1728098778022,0.98902746,2398.0,2397.8,2.82929944]
[1728098779226,0.98902746,2398.0,2397.9,0.2919]
[1728098779627,0.98902746,2398.0,2397.9,1.3419]
[1728098780925,3.2078,2398.2,2397.9,1.3419]
[1728098781131,0.98902746,2398.0,2397.9,0.2919]
[1728098781328,0.98902746,2398.0,2397.9,1.3419]
[1728098781729,0.98902746,2398.0,2397.8,0.54929944]
[1728098781929,0.98902746,2398.0,2397.9,1.05]
[1728098782131,0.98902746,2398.0,2397.9,1.3419]
[1728098785726,0.98902746,2398.0,2397.9,1.05]
[1728098786125,0.98902746,2398.0,2397.9,2.018]
[1728098787232,0.98902746,2398.0,2397.9,2.3099]
[1728098790232,0.98902746,2398.0,2397.9,2.85810664]
[1728098791028,0.98902746,2398.0,2397.9,2.3099]
[1728098791237,0.98902746,2398.0,2397.9,2.85814521]
[1728098791733,0.4184,2398.3,2398.1,0.29187]
[1728098791927,0.4184,2398.3,2398.2,1.05]
[1728098792529,0.4184,2398.3,2398.2,1.34187]
[1728098792730,0.4184,2398.3,2398.2,1.89035674]
[1728098792937,0.4184,2398.3,2398.2,6.05995674]
[1728098793631,3.6106,2398.4,2398.2,5.76808674]
[1728098793824,0.3886,2398.6,2398.5,0.29183]
[1728098794031,0.3886,2398.6,2398.5,1.34183]
[1728098794838,0.3886,2398.6,2398.5,1.89049281]